bitfinex/quotes_SOLUSD_20250611
["timestamp","ask_amount","ask_price","bid_price","bid_amount"]
[1749607732803,6.56,165.57,165.48,52.74]
[1749607733005,6.56,165.57,165.46,26.78]
[1749607733208,29.25249275,165.51,165.46,26.78]
[1749607733408,6.56,165.57,165.48,29.25249275]
[1749607733626,6.56,165.57,165.49,29.25249275]
[1749607733843,29.25249275,165.53,165.46,26.78]
[1749607734011,29.25249275,165.53,165.48,29.25249275]
[1749607734217,6.56,165.57,165.48,29.25249275]
[1749607734422,29.25249275,165.53,165.48,29.25249275]
[1749607734619,6.56,165.57,165.48,29.25249275]
[1749607734939,6.56,165.57,165.47,18.79181043]
[1749607735143,6.56,165.57,165.48,29.25249275]
[1749607735440,29.25249275,165.53,165.48,29.25249275]
[1749607736140,29.25249275,165.52,165.46,26.78]
[1749607736443,6.56,165.57,165.47,29.25249275]
[1749607736647,29.25249275,165.52,165.46,26.78]
[1749607736868,29.25249275,165.51,165.46,56.03249275]
[1749607737019,29.25249275,165.5,165.46,26.78]
[1749607737217,29.25249275,165.5,165.45,29.25249275]
[1749607737538,29.25249275,165.49,165.44,56.01249275]
[1749607737734,29.25249275,165.5,165.45,29.25249275]
[1749607737915,6.56,165.57,165.49,29.25249275]
[1749607738113,6.56,165.57,165.49,26.74]
[1749607738316,29.25249275,165.56,165.51,29.25249275]
[1749607738526,29.25249275,165.55,165.51,29.25249275]
[1749607738738,29.25249275,165.55,165.49,26.74]
[1749607739041,29.25249275,165.55,165.5,29.25249275]
[1749607739225,6.56,165.57,165.42,7.54756894]
[1749607739226,29.25249275,165.51,165.42,7.54756894]
[1749607739542,29.25249275,165.49,165.43,18.64964886]
[1749607739837,29.25249275,165.46,165.41,26.7]
[1749607740043,29.25249275,165.46,165.42,26.0]
[1749607740216,6.56,165.57,165.43,29.25249275]
[1749607740422,29.25249275,165.48,165.43,29.25249275]
[1749607740647,29.25249275,165.47,165.42,26.7]
[1749607740960,29.25249275,165.47,165.42,29.25249275]
[1749607741660,29.25249275,165.47,165.41,26.0]
[1749607741876,0.1258763,165.43,165.41,52.66]
[1749607742163,0.1258763,165.43,165.41,81.91249275]
[1749607742541,0.1258763,165.43,165.42,48.04430318]
[1749607742748,0.1258763,165.43,165.42,48.64859174]
[1749607742942,0.13191818,165.45,165.44,55.39465432]
[1749607743143,0.13191818,165.45,165.44,82.03465432]
[1749607743963,0.13191818,165.45,165.42,55.25249275]
[1749607744168,0.13191818,165.45,165.42,26.62]
[1749607744636,0.13191818,165.45,165.4,26.0]
[1749607744835,0.13191818,165.45,165.44,29.25249275]
[1749607745457,0.13191818,165.45,165.41,52.62]
[1749607745632,0.13191818,165.45,165.43,29.25249275]
[1749607745832,0.13191818,165.45,165.42,18.79181043]
[1749607746063,0.13191818,165.45,165.43,29.25249275]
[1749607746362,0.13191818,165.45,165.44,26.6]
[1749607746945,0.13191818,165.45,165.42,55.83249275]
[1749607748182,29.25249275,165.44,165.41,26.0]
[1749607748383,29.25249275,165.43,165.4,26.56]
[1749607748883,29.25249275,165.43,165.39,26.56]
[1749607749684,0.13191818,165.45,165.39,55.81249275]
[1749607749892,0.13191818,165.45,165.42,44.64964886]
[1749607750177,0.13191818,165.45,165.44,48.04430318]
[1749607751673,0.13191818,165.45,165.44,54.0887906]
[1749607751862,0.13191818,165.45,165.44,48.04430318]
[1749607752582,0.11940942,165.46,165.45,18.79181043]
[1749607752881,6.4562,165.58,165.48,18.79181043]
[1749607753091,8.0999,165.63,165.49,83.52858669]
[1749607753386,25.68393471,165.63,165.58,19.22773471]
[1749607753687,19.22773471,165.62,165.58,26.5]
[1749607753879,19.22773471,165.61,165.58,26.5]
[1749607754187,19.22773471,165.61,165.53,0.14216157]
[1749607754369,19.22773471,165.57,165.53,26.5]
[1749607754565,6.4562,165.63,165.54,19.22773471]
[1749607755282,6.4562,165.63,165.52,26.0]
[1749607755283,19.22773471,165.57,165.52,26.0]
[1749607755482,19.22773471,165.57,165.52,26.5]
[1749607755700,19.22773471,165.57,165.53,26.0]
[1749607756983,19.22773471,165.57,165.53,45.22773471]
[1749607757202,19.22773471,165.58,165.53,45.22773471]
[1749607757901,19.22773471,165.56,165.49,16.51185245]
[1749607758108,6.4562,165.63,165.52,26.0]
[1749607758290,19.22773471,165.58,165.52,26.0]
[1749607758481,19.22773471,165.58,165.52,71.68773471]
[1749607758683,19.22773471,165.58,165.52,52.46]
[1749607758883,6.4562,165.63,165.52,71.68773471]
[1749607759295,19.22773471,165.57,165.52,71.68773471]
[1749607759692,6.42,165.62,165.52,71.68773471]
[1749607759899,19.22773471,165.56,165.52,52.46]
[1749607760408,1.6157,165.59,165.45,15.50178351]
[1749607760615,19.22773471,165.51,165.46,64.29738357]
[1749607760993,19.22773471,165.53,165.47,45.22773471]
[1749607761194,19.22773471,165.53,165.48,19.22773471]
[1749607761407,1.6157,165.59,165.51,19.22773471]
[1749607761699,19.22773471,165.56,165.51,19.22773471]
[1749607761910,0.13041819,165.52,165.51,26.0]
[1749607762087,0.13041819,165.52,165.51,45.22773471]
[1749607762411,19.3581529,165.52,165.49,26.4]
[1749607762587,19.22773471,165.51,165.48,26.0]
[1749607762789,19.3581529,165.52,165.48,26.0]
[1749607763314,19.22773471,165.51,165.48,26.0]
[1749607764111,19.22773471,165.51,165.47,26.38]
[1749607764603,0.13041819,165.52,165.47,26.38]
[1749607764604,0.13041819,165.52,165.5,26.0]
[1749607764784,19.3581529,165.52,165.5,26.0]
[1749607766509,19.3581529,165.52,165.47,45.60773471]
[1749607766695,0.13041819,165.52,165.47,45.60773471]
[1749607766896,19.3581529,165.52,165.47,45.60773471]
[1749607767095,0.13041819,165.52,165.47,45.60773471]
[1749607767423,19.3581529,165.52,165.47,45.60773471]
[1749607768011,19.3581529,165.52,165.47,26.38]
[1749607768212,19.3581529,165.52,165.47,45.60773471]
[1749607768592,0.13041819,165.52,165.47,45.60773471]
[1749607769505,19.3581529,165.52,165.47,45.60773471]
[1749607771007,19.3581529,165.52,165.47,26.38]
[1749607771213,0.13041819,165.52,165.5,19.22773471]
[1749607771724,0.13041819,165.52,165.5,26.3]
[1749607771899,19.3581529,165.52,165.5,26.3]
[1749607772105,19.3581529,165.52,165.48,26.26]
[1749607772330,0.13041819,165.52,165.48,26.26]
[1749607772826,19.3581529,165.52,165.48,26.26]
[1749607773123,0.13041819,165.52,165.48,26.26]
[1749607773422,19.3581529,165.52,165.48,26.26]
[1749607774218,19.22773471,165.51,165.48,26.26]
[1749607774617,1.5649,165.51,165.37,8.077]
[1749607774825,19.22773471,165.45,165.4,19.22773471]
[1749607775014,1.5649,165.51,165.41,45.44773471]
[1749607775219,19.22773471,165.46,165.41,26.22]
[1749607775405,19.22773471,165.46,165.41,45.44773471]
[1749607775605,1.5649,165.51,165.42,26.2]
[1749607775824,19.22773471,165.47,165.42,26.2]
[1749607776004,1.5649,165.51,165.42,26.2]
[1749607776210,19.22773471,165.47,165.42,26.2]
[1749607776514,19.22773471,165.47,165.42,45.42773471]
[1749607777228,1.5649,165.51,165.43,19.22773471]
[1749607777412,19.22773471,165.5,165.43,18.64964886]
[1749607777922,19.22773471,165.49,165.43,18.64964886]
[1749607778107,19.22773471,165.49,165.44,19.22773471]
[1749607778309,19.22773471,165.49,165.45,26.16]
[1749607780228,0.13041819,165.52,165.48,19.22773471]
[1749607780429,0.13041819,165.52,165.5,19.22773471]
[1749607780628,0.13041819,165.52,165.48,26.12]
[1749607780806,0.13041819,165.52,165.48,45.34773471]
[1749607781208,19.22773471,165.5,165.46,26.0]
[1749607781415,19.22773471,165.49,165.46,26.0]
[1749607781830,0.10916553,165.47,165.45,26.12]
[1749607783134,0.10916553,165.47,165.46,38.62375329]
[1749607783323,0.00209947,165.52,165.49,44.79181043]
[1749607783523,0.00209947,165.52,165.51,19.22773471]
[1749607784237,6.42,165.59,165.53,0.14216157]
[1749607784539,6.42,165.59,165.53,71.44989628]
[1749607785319,6.42,165.59,165.53,52.22216157]
[1749607785631,6.42,165.59,165.53,71.44989628]
[1749607785811,6.42,165.59,165.53,45.44989628]
[1749607786013,19.22773471,165.65,165.54,24.85091043]
[1749607786208,159.16314286,165.68,165.59,44.64964886]
[1749607786411,19.22773471,165.65,165.6,45.26773471]
[1749607786629,19.22773471,165.63,165.6,26.04]
[1749607786912,159.16314286,165.68,165.6,26.04]
[1749607786913,7.8843,165.67,165.6,26.04]
[1749607787114,7.8843,165.67,165.59,26.0]
[1749607787314,19.22773471,165.63,165.58,45.26773471]
[1749607787927,7.8843,165.67,165.58,45.26773471]
[1749607788324,19.22773471,165.63,165.58,45.26773471]
[1749607788639,19.22773471,165.62,165.58,26.04]
[1749607788937,19.22773471,165.59,165.46,1.6457]
[1749607789134,19.22773471,165.56,165.51,19.22773471]
[1749607789454,19.22773471,165.57,165.52,19.22773471]
[1749607789638,2.24422736,165.66,165.53,52.0]
[1749607789840,19.22773471,165.58,165.53,45.22773471]
[1749607790030,19.22773471,165.58,165.53,71.22773471]
[1749607790227,19.22773471,165.58,165.53,45.22773471]
[1749607790725,19.22773471,165.62,165.57,19.22773471]
[1749607790924,6.16,165.65,165.57,45.20773471]
[1749607791311,19.22773471,165.62,165.57,45.20773471]
[1749607791709,19.22773471,165.6,165.57,25.98]
[1749607792441,6.16,165.65,165.6,26.0]
[1749607792626,19.22773471,165.64,165.61,26.0]
[1749607793357,19.22773471,165.63,165.61,26.0]
[1749607793528,19.22773471,165.62,165.61,26.0]
[1749607794364,19.22773471,165.62,165.58,25.94]
[1749607794537,19.22773471,165.6,165.57,51.94]
[1749607794734,19.22773471,165.58,165.56,25.94]
[1749607795258,6.16,165.65,165.56,25.94]
[1749607795437,19.22773471,165.58,165.56,25.94]
[1749607795962,6.16,165.65,165.56,25.94]
[1749607796333,19.22773471,165.6,165.56,25.94]
[1749607796533,19.22773471,165.59,165.56,25.94]
[1749607796729,19.22773471,165.58,165.56,25.94]
[1749607797040,19.22773471,165.57,165.49,6.0591]
[1749607797349,6.6225,165.58,165.5,18.64964886]
[1749607797554,19.22773471,165.55,165.51,25.9]
[1749607797753,19.22773471,165.55,165.51,51.88]
[1749607798258,19.22773471,165.55,165.51,25.88]
[1749607798441,19.22773471,165.55,165.51,45.10773471]
[1749607798640,19.22773471,165.55,165.51,71.10773471]
[1749607799057,19.22773471,165.55,165.51,51.88]
[1749607799260,19.22773471,165.55,165.51,45.10773471]
[1749607799559,19.22773471,165.55,165.51,25.88]
[1749607799758,19.22773471,165.55,165.51,45.10773471]
[1749607800851,19.22773471,165.56,165.51,45.10773471]
[1749607801068,19.22773471,165.56,165.51,25.88]
[1749607801269,19.22773471,165.53,165.48,0.14216157]
[1749607801442,19.22773471,165.53,165.48,19.22773471]
[1749607801637,19.22773471,165.55,165.5,19.22773471]
[1749607801941,19.22773471,165.57,165.52,19.22773471]
[1749607802140,19.22773471,165.57,165.53,45.06773471]
[1749607802342,19.22773471,165.58,165.53,45.06773471]
[1749607802763,19.22773471,165.57,165.53,25.84]
[1749607802944,19.22773471,165.56,165.53,25.84]
[1749607803143,1.5645,165.59,165.53,25.84]
[1749607803369,19.22773471,165.56,165.53,25.84]
[1749607803568,19.22773471,165.54,165.5,25.82]
[1749607803957,19.22773471,165.54,165.5,51.8]
[1749607804152,19.22773471,165.53,165.46,1.6457]
[1749607804365,19.22773471,165.52,165.47,45.02773471]
[1749607805040,19.22773471,165.52,165.48,51.8]
[1749607805247,19.22773471,165.52,165.48,26.0]
[1749607805468,19.22773471,165.52,165.48,51.8]
[1749607805850,6.16,165.56,165.48,51.8]
[1749607805851,19.22773471,165.54,165.48,51.8]
[1749607806046,19.22773471,165.55,165.5,19.22773471]
[1749607806455,6.16,165.56,165.51,45.00773471]
[1749607806645,6.16,165.56,165.51,51.78]
[1749607806851,6.16,165.56,165.52,19.22773471]
[1749607807155,25.38773471,165.56,165.51,51.78]
[1749607807361,25.38773471,165.56,165.52,19.22773471]
[1749607807575,19.22773471,165.56,165.52,19.22773471]
[1749607808648,19.22773471,165.55,165.51,51.78]
[1749607809976,19.22773471,165.56,165.51,71.00773471]
[1749607810278,19.22773471,165.55,165.51,51.78]
[1749607811657,19.22773471,165.55,165.51,25.78]
[1749607812563,19.22773471,165.56,165.51,45.00773471]
[1749607814174,1.5645,165.59,165.52,19.22773471]
[1749607814477,19.22773471,165.53,165.5,26.0]
[1749607814655,1.5645,165.59,165.5,26.0]
[1749607814656,19.22773471,165.52,165.5,26.0]
[1749607814856,19.22773471,165.53,165.5,26.0]
[1749607816700,25.38773471,165.6,165.5,26.0]
[1749607816701,19.22773471,165.54,165.5,26.0]
[1749607816872,19.22773471,165.53,165.49,51.7]
[1749607817286,1.5309,165.56,165.49,26.0]
[1749607817483,19.22773471,165.54,165.49,70.92773471]
[1749607817697,19.22773471,165.53,165.49,51.7]
[1749607817874,19.22773471,165.52,165.49,51.7]
[1749607818080,19.22773471,165.52,165.49,26.0]
[1749607818688,1.5309,165.56,165.49,26.0]
[1749607819002,19.22773471,165.52,165.49,26.0]
[1749607819701,19.22773471,165.51,165.46,18.64964886]
[1749607819872,19.22773471,165.49,165.42,18.64964886]
[1749607820074,19.22773471,165.49,165.47,26.0]
[1749607820797,1.6499,165.47,165.37,89.9]
[1749607821100,19.22773471,165.42,165.38,25.66]
[1749607821496,19.22773471,165.41,165.35,96.375]
[1749607821685,19.22773471,165.45,165.4,19.22773471]
[1749607822001,19.22773471,165.43,165.4,25.66]
[1749607822210,19.22773471,165.44,165.4,25.66]
[1749607823309,1.6499,165.47,165.4,25.66]
[1749607823510,19.22773471,165.44,165.4,25.66]
[1749607824710,19.22773471,165.46,165.43,26.0]
[1749607825311,19.22773471,165.45,165.43,26.0]
[1749607825702,19.22773471,165.44,165.4,25.66]
[1749607825902,19.22773471,165.43,165.4,25.66]
[1749607828195,1.6499,165.47,165.4,25.66]
[1749607828397,19.22773471,165.43,165.4,115.56]
[1749607828617,19.22773471,165.43,165.39,26.0]
[1749607828813,1.6499,165.47,165.39,51.6]
[1749607829118,1.6499,165.47,165.39,70.82773471]
[1749607829326,19.22773471,165.44,165.39,70.82773471]
[1749607829620,1.6499,165.47,165.4,26.0]
[1749607830005,19.22773471,165.43,165.39,25.6]
[1749607830408,19.22773471,165.42,165.39,25.6]
[1749607830841,19.22773471,165.4,165.36,7.54756894]
[1749607831040,19.22773471,165.38,165.32,89.9]
[1749607831212,19.22773471,165.38,165.36,26.0]
[1749607831535,6.0788,165.44,165.36,26.0]
[1749607831831,19.22773471,165.37,165.27,18.64964886]
[1749607832142,19.22773471,165.4,165.3,19.22773471]
[1749607832143,19.22773471,165.35,165.3,19.22773471]
[1749607832432,19.22773471,165.35,165.32,26.0]
[1749607832634,7.4317,165.39,165.25,97.44756894]
[1749607832846,19.22773471,165.36,165.31,19.22773471]
[1749607833011,19.22773471,165.36,165.32,25.64]
[1749607833214,7.4317,165.39,165.32,25.64]
[1749607833431,19.22773471,165.36,165.32,25.64]
[1749607834553,19.22773471,165.34,165.32,25.64]
[1749607835525,19.22773471,165.33,165.31,26.0]
[1749607836244,19.22773471,165.32,165.31,26.0]
[1749607836447,19.22773471,165.33,165.31,26.0]
[1749607837238,7.4317,165.39,165.27,7.54756894]
[1749607837239,19.22773471,165.32,165.27,7.54756894]
[1749607837439,19.22773471,165.31,165.28,25.6]
[1749607837640,19.22773471,165.31,165.3,26.0]
[1749607840442,19.22773471,165.32,165.3,26.0]
[1749607841024,19.22773471,165.31,165.3,26.0]
[1749607843946,19.22773471,165.31,165.28,25.54]
[1749607844244,19.22773471,165.3,165.27,25.54]
[1749607844450,6.1624,165.35,165.28,26.0]
[1749607844630,19.22773471,165.32,165.27,70.76773471]
[1749607845324,6.1624,165.35,165.27,70.76773471]
[1749607845521,5.82,165.37,165.3,19.22773471]
[1749607845748,13.5217,165.39,165.31,19.22773471]
[1749607845960,19.22773471,165.36,165.31,19.22773471]
[1749607846131,13.5217,165.39,165.31,19.22773471]
[1749607846327,19.22773471,165.36,165.31,19.22773471]
[1749607846528,13.5217,165.39,165.31,19.22773471]
[1749607846733,19.22773471,165.36,165.3,51.54]
[1749607847152,19.22773471,165.36,165.31,19.22773471]
[1749607847544,13.5217,165.39,165.3,51.54]
[1749607847853,19.22773471,165.37,165.32,19.22773471]
[1749607848030,19.22773471,165.37,165.33,25.52]
[1749607848450,19.22773471,165.36,165.33,25.52]
[1749607849357,11.57371313,165.36,165.33,25.52]
[1749607849741,11.57371313,165.37,165.33,25.52]
[1749607850359,11.57371313,165.36,165.33,25.52]
[1749607850867,11.57371313,165.37,165.33,25.52]
[1749607851362,11.57371313,165.39,165.34,11.57371313]
[1749607851742,11.57371313,165.38,165.33,37.09371313]
[1749607854473,11.57371313,165.38,165.34,11.57371313]
[1749607855083,11.57371313,165.38,165.33,25.52]
[1749607855364,11.57371313,165.38,165.34,11.57371313]
[1749607855769,11.57371313,165.41,165.36,11.57371313]
[1749607855942,11.57371313,165.41,165.36,37.03371313]
[1749607856139,11.57371313,165.4,165.36,25.46]
[1749607856848,8.0987,165.43,165.36,115.36]
[1749607857050,11.57371313,165.41,165.36,37.03371313]
[1749607857749,8.0987,165.43,165.36,37.03371313]
[1749607857944,11.57371313,165.41,165.36,37.03371313]
[1749607858764,11.57371313,165.4,165.36,37.03371313]
[1749607858949,8.0987,165.43,165.36,25.46]
[1749607858950,11.57371313,165.39,165.36,25.46]
[1749607859154,11.57371313,165.37,165.33,123.44756894]
[1749607859351,8.0987,165.43,165.34,25.44]
[1749607859542,11.57371313,165.37,165.34,115.34]
[1749607860056,11.57371313,165.37,165.34,89.9]
[1749607860470,8.0987,165.43,165.34,89.9]
[1749607860768,11.57371313,165.35,165.29,89.9]
[1749607860972,11.57371313,165.3,165.26,89.9]
[1749607861271,13.508,165.35,165.23,7.54756894]
[1749607861272,11.57371313,165.27,165.23,7.54756894]
[1749607861471,11.57371313,165.27,165.23,59.00756894]
[1749607862273,11.57371313,165.27,165.23,33.00756894]
[1749607862578,11.57371313,165.26,165.23,25.46]
[1749607862950,11.57371313,165.26,165.21,11.57371313]
[1749607863173,13.508,165.35,165.22,25.46]
[1749607863368,19.31338452,165.25,165.2,28.27795842]
[1749607863573,19.31338452,165.23,165.2,8.9645739]
[1749607863873,19.31338452,165.22,165.19,25.46]
[1749607864253,19.31338452,165.23,165.19,25.46]
[1749607864776,19.31338452,165.23,165.19,44.77338452]
[1749607865073,8.1621,165.33,165.21,19.31338452]
[1749607865251,19.31338452,165.31,165.26,19.31338452]
[1749607866574,19.31338452,165.29,165.25,44.77338452]
[1749607866871,19.31338452,165.28,165.25,25.46]
[1749607867174,13.9821,165.33,165.25,25.46]
[1749607867378,19.31338452,165.29,165.25,25.46]
[1749607867676,19.31338452,165.29,165.22,132.41214284]
[1749607867677,19.31338452,165.26,165.23,25.46]
[1749607867843,19.31338452,165.24,165.23,25.46]
[1749607868047,19.31338452,165.24,165.2,19.31338452]
[1749607868273,19.31338452,165.24,165.21,25.46]
[1749607868694,19.31338452,165.25,165.21,25.46]
[1749607868870,19.31338452,165.26,165.21,44.77338452]
[1749607869395,5.82,165.3,165.22,19.31338452]
[1749607869591,19.31338452,165.29,165.24,19.31338452]
[1749607869782,19.31338452,165.28,165.24,25.46]
[1749607870693,19.31338452,165.26,165.22,26.0]
[1749607870896,19.31338452,165.25,165.21,34.4245739]
[1749607871393,19.31338452,165.24,165.21,34.4445739]
[1749607871695,19.31338452,165.24,165.21,8.9645739]
[1749607871888,19.31338452,165.24,165.21,25.46]
[1749607872087,5.82,165.3,165.23,19.31338452]
[1749607872287,5.82,165.3,165.25,19.31338452]
[1749607872288,19.31338452,165.29,165.25,19.31338452]
[1749607872590,5.82,165.3,165.24,44.79338452]
[1749607872767,19.31338452,165.29,165.24,44.79338452]
[1749607873375,5.82,165.3,165.24,134.69338452]
[1749607873580,19.31338452,165.29,165.24,134.69338452]
[1749607873870,19.31338452,165.28,165.24,134.69338452]
[1749607874286,19.31338452,165.29,165.24,134.69338452]
[1749607875001,19.31338452,165.28,165.24,134.69338452]
[1749607876315,5.78,165.32,165.24,115.38]
[1749607876612,19.31338452,165.27,165.24,115.38]
[1749607878024,5.78,165.32,165.24,115.38]
[1749607878218,19.31338452,165.28,165.24,115.38]
[1749607879106,5.78,165.32,165.24,115.38]
[1749607879284,19.31338452,165.29,165.24,134.69338452]
[1749607879481,5.78,165.32,165.24,134.69338452]
[1749607879482,25.09338452,165.32,165.27,19.31338452]
[1749607879681,19.31338452,165.33,165.28,44.75338452]
[1749607880301,19.31338452,165.32,165.28,25.44]
[1749607880984,19.31338452,165.31,165.28,25.44]
[1749607881578,5.78,165.35,165.28,44.75338452]
[1749607881807,5.78,165.35,165.3,19.31338452]
[1749607881808,19.31338452,165.34,165.3,19.31338452]
[1749607882104,19.31338452,165.34,165.3,44.75338452]
[1749607882502,19.31338452,165.32,165.3,25.44]
[1749607882809,19.31338452,165.31,165.28,25.44]
[1749607883006,19.31338452,165.29,165.28,25.44]
[1749607883892,6.2723,165.36,165.28,25.44]
[1749607884095,6.2723,165.36,165.28,25.42]
[1749607884397,19.31338452,165.32,165.28,34.3845739]
[1749607884597,19.31338452,165.31,165.28,34.3845739]
[1749607885917,6.2723,165.36,165.28,25.42]
[1749607886211,19.31338452,165.31,165.28,25.42]
[1749607887615,19.31338452,165.29,165.27,26.0]
[1749607887793,19.31338452,165.3,165.25,19.31338452]
[1749607888109,19.31338452,165.3,165.26,25.42]
[1749607888305,19.31338452,165.3,165.26,44.73338452]
[1749607888506,19.31338452,165.31,165.26,25.42]
[1749607888713,19.31338452,165.31,165.26,44.73338452]
[1749607889819,6.2723,165.36,165.26,44.73338452]
[1749607889820,19.31338452,165.3,165.27,26.0]
[1749607890930,6.2723,165.36,165.27,26.0]
[1749607891150,6.2723,165.36,165.27,115.9]
[1749607891151,19.31338452,165.3,165.27,115.9]
[1749607891810,19.31338452,165.29,165.27,115.9]
[1749607893032,6.2723,165.36,165.27,115.9]
[1749607893209,19.31338452,165.3,165.27,115.9]
[1749607896817,19.31338452,165.29,165.27,115.9]
[1749607897833,19.31338452,165.28,165.25,115.22]
[1749607898242,19.31338452,165.28,165.25,89.9]
[1749607899839,19.31338452,165.28,165.25,115.22]
[1749607900336,19.31338452,165.28,165.25,89.9]
[1749607903120,19.31338452,165.28,165.24,150.1845739]
[1749607903434,11.58414961,165.28,165.24,150.1845739]
[1749607904019,11.58414961,165.29,165.24,150.1845739]
[1749607904441,11.58414961,165.29,165.24,161.76872351]
[1749607905312,11.58414961,165.29,165.24,150.1845739]
[1749607905516,11.58414961,165.28,165.24,150.1845739]
[1749607907753,5.78,165.32,165.24,150.1845739]
[1749607908062,11.58414961,165.28,165.24,150.1845739]
[1749607908961,11.58414961,165.26,165.24,26.0]
[1749607909259,11.58414961,165.26,165.24,51.26]
[1749607909462,1.532,165.3,165.21,89.9]
[1749607909463,11.58414961,165.25,165.21,89.9]
[1749607909686,11.58414961,165.24,165.22,25.26]
[1749607909956,11.58414961,165.24,165.21,115.16]
[1749607910341,11.58414961,165.23,165.21,115.16]
[1749607910546,6.0706,165.29,165.24,26.0]
[1749607910741,11.58414961,165.25,165.23,25.26]
[1749607910966,11.58414961,165.24,165.19,101.48414961]
[1749607911257,11.58414961,165.22,165.17,13.23234961]
[1749607911457,11.58414961,165.22,165.18,51.28]
[1749607913362,11.58414961,165.22,165.18,26.0]
[1749607913569,6.0706,165.29,165.19,25.28]
[1749607913872,11.58414961,165.23,165.19,25.28]
[1749607914044,11.58414961,165.22,165.19,25.28]
[1749607914565,11.58414961,165.21,165.19,25.28]
[1749607915062,11.58414961,165.21,165.18,26.0]
[1749607915246,11.58414961,165.2,165.18,25.28]
[1749607915446,11.58414961,165.19,165.15,18.79181043]
[1749607915644,11.58414961,165.19,165.16,25.28]
[1749607916055,26.0,165.26,165.16,25.28]
[1749607916274,11.58414961,165.2,165.16,25.28]
[1749607916453,11.58414961,165.2,165.16,51.28]
[1749607917568,11.58414961,165.19,165.16,51.28]
[1749607917967,11.58414961,165.17,165.14,8.9645739]
[1749607918166,11.58414961,165.15,165.07,15.2083739]
[1749607918480,11.58414961,165.1,165.05,1.6408]
[1749607918773,1.5436,165.19,165.03,6.4446]
[1749607918774,11.58414961,165.08,165.06,25.3]
[1749607918951,11.58414961,165.07,165.06,25.3]
[1749607919868,11.58414961,165.08,165.06,25.3]
[1749607920063,11.58414961,165.12,165.06,25.3]
[1749607920260,11.58414961,165.08,165.06,25.3]
[1749607920872,11.58414961,165.08,165.06,26.0]
[1749607921071,11.58414961,165.07,165.05,26.0]
[1749607921281,11.58414961,165.06,165.04,25.28]
[1749607921467,11.58414961,165.06,165.01,13.22494961]
[1749607921663,11.58414961,165.06,165.04,26.0]
[1749607921860,18.74904961,165.12,165.04,25.28]
[1749607921861,11.58414961,165.05,165.04,25.28]
[1749607922376,11.58414961,165.05,165.0,4.94660801]
[1749607922567,11.58414961,165.03,165.01,25.3]
[1749607922881,11.58414961,165.03,165.01,51.3]
[1749607923177,11.58414961,165.02,165.01,25.3]
[1749607923479,11.58414961,165.04,165.0,25.3]
[1749607923684,11.58414961,165.03,165.0,25.3]
[1749607923868,11.58414961,165.04,165.0,25.3]
[1749607924460,11.58414961,165.05,165.0,36.88414961]
[1749607924667,11.58414961,165.04,165.0,34.2645739]
[1749607924876,11.58414961,165.05,165.0,50.71939838]
[1749607925085,5.66,165.1,165.0,50.71939838]
[1749607925383,11.58414961,165.05,165.0,50.71939838]
[1749607926065,7.1649,165.12,165.04,37.58414961]
[1749607926264,7.1649,165.12,165.05,25.3]
[1749607926474,11.58414961,165.07,165.05,25.3]
[1749607926982,11.58414961,165.09,165.05,25.3]
[1749607928081,11.58414961,165.1,165.05,36.88414961]
[1749607928276,1.5819,165.16,165.08,37.58414961]
[1749607928486,11.58414961,165.15,165.1,11.58414961]
[1749607928691,11.58414961,165.15,165.11,25.3]
[1749607929284,19.33673934,165.15,165.11,25.3]
[1749607930072,19.33673934,165.14,165.11,25.3]
[1749607931287,11.7267,165.18,165.11,25.3]
[1749607931488,19.33673934,165.15,165.11,25.3]
[1749607931695,19.33673934,165.14,165.11,25.3]
[1749607931988,11.7267,165.18,165.11,25.3]
[1749607932205,19.33673934,165.15,165.12,26.0]
[1749607932561,11.7267,165.18,165.12,26.0]
[1749607932767,19.33673934,165.13,165.11,25.3]
[1749607933065,19.33673934,165.12,165.11,25.3]
[1749607933276,11.7267,165.18,165.09,25.3]